[Event "Titled Tuesday Blitz June 13 Early 2023"]
[White "DanyKopy"]
[Black "Kashlinskaya, Alina"]
[BlackFideId "4198026"]
[WhiteElo "2460"]
[BlackElo "2383"]
[Result "1-0"]
[Round "10"]
[TimeControl "180+2"]
[Date "2023.06.13"]
[WhiteClock "0:00:02"]
[BlackClock "0:00:00"]
[Board "54"]

1. e4 {[%clk 0:02:58]}  c5 {[%clk 0:02:59]} 2. Nf3 {[%clk 0:02:57]}  d6 {[%clk 0:02:59]} 3. d4 {[%clk 0:02:57]}  cxd4 {[%clk 0:03:00]} 4. Nxd4 {[%clk 0:02:58]}  Nf6 {[%clk 0:03:00]} 5. Nc3 {[%clk 0:02:58]}  a6 {[%clk 0:03:01]} 6. Be3 {[%clk 0:02:58]}  e5 {[%clk 0:02:58]} 7. Nf3 {[%clk 0:02:58]}  Be7 {[%clk 0:02:58]} 8. Bc4 {[%clk 0:02:58]}  Nc6 {[%clk 0:02:48]} 9. O-O {[%clk 0:02:54]}  O-O {[%clk 0:02:47]} 10. Re1 {[%clk 0:02:49]}  Be6 {[%clk 0:02:46]} 11. Bb3 {[%clk 0:02:45]}  Rc8 {[%clk 0:02:45]} 12. Ng5 {[%clk 0:02:34]}  Bg4 {[%clk 0:02:37]} 13. Nf3 {[%clk 0:02:17]}  Na5 {[%clk 0:02:35]} 14. h3 {[%clk 0:02:16]}  Bh5 {[%clk 0:02:34]} 15. Bd5 {[%clk 0:01:53]}  Nc4 {[%clk 0:02:02]} 16. Bc1 {[%clk 0:01:51]}  b5 {[%clk 0:01:54]} 17. Qd3 {[%clk 0:01:48]}  Nxd5 {[%clk 0:01:50]} 18. Nxd5 {[%clk 0:01:45]}  Bg6 {[%clk 0:01:47]} 19. a4 {[%clk 0:01:20]}  f5 {[%clk 0:01:45]} 20. exf5 {[%clk 0:00:29]}  Bxf5 {[%clk 0:01:44]} 21. Qb3 {[%clk 0:00:28]}  Kh8 {[%clk 0:01:41]} 22. axb5 {[%clk 0:00:28]}  axb5 {[%clk 0:01:40]} 23. Qxb5 {[%clk 0:00:22]}  e4 {[%clk 0:01:10]} 24. Ra7 {[%clk 0:00:21]}  Bh4 {[%clk 0:01:07]} 25. Qb7 {[%clk 0:00:21]}  Bf6 {[%clk 0:00:59]} 26. Bg5 {[%clk 0:00:19]}  Rb8 {[%clk 0:00:54]} 27. Bxf6 {[%clk 0:00:03]}  Rxb7 {[%clk 0:00:54]} 28. Bxd8 {[%clk 0:00:04]}  Rxa7 {[%clk 0:00:55]} 29. Be7 {[%clk 0:00:04]}  Re8 {[%clk 0:00:25]} 30. Nd4 {[%clk 0:00:04]}  Bg6 {[%clk 0:00:26]} 31. Bg5 {[%clk 0:00:03]}  h6 {[%clk 0:00:24]} 32. Bc1 {[%clk 0:00:02]}  Bf7 {[%clk 0:00:24]} 33. Nb5 {[%clk 0:00:01]}  Rb7 {[%clk 0:00:16]} 34. Ndc3 {[%clk 0:00:02]}  d5 {[%clk 0:00:16]} 35. Nd4 {[%clk 0:00:01]}  Ra8 {[%clk 0:00:15]} 36. b3 {[%clk 0:00:01]}  Nd6 {[%clk 0:00:13]} 37. Bb2 {[%clk 0:00:01]}  Rc7 {[%clk 0:00:12]} 38. Nd1 {[%clk 0:00:02]}  Ra2 {[%clk 0:00:11]} 39. Re3 {[%clk 0:00:01]}  Kg8 {[%clk 0:00:02]} 40. Rg3 {[%clk 0:00:02]}  Kf8 {[%clk 0:00:02]} 41. Kh2 {[%clk 0:00:02]}  Ne8 {[%clk 0:00:02]} 42. Nb5 {[%clk 0:00:02]}  Rb7 {[%clk 0:00:02]} 43. Nd4 {[%clk 0:00:02]}  Rb8 {[%clk 0:00:02]} 44. Nf5 {[%clk 0:00:01]}  g5 {[%clk 0:00:00]} 45. Nxh6 {[%clk 0:00:02]} 1-0


[Site "https://www.chess.com"]

[Event "Titled Tuesday Blitz June 13 Early 2023"]
[White "Garcia Cuenca, Victor"]
[Black "Thecourseoisildur"]
[WhiteFideId "2250829"]
[WhiteElo "2329"]
[BlackElo "2595"]
[Result "1-0"]
[Round "10"]
[TimeControl "180+2"]
[Date "2023.06.13"]
[WhiteClock "0:00:20"]
[BlackClock "0:00:00"]
[Board "55"]

1. Nf3 {[%clk 0:03:00]}  Nf6 {[%clk 0:02:49]} 2. g3 {[%clk 0:03:01]}  g6 {[%clk 0:02:49]} 3. Bg2 {[%clk 0:03:01]}  Bg7 {[%clk 0:02:50]} 4. O-O {[%clk 0:03:02]}  O-O {[%clk 0:02:50]} 5. b3 {[%clk 0:03:03]}  Ne4 {[%clk 0:02:42]} 6. c3 {[%clk 0:02:53]}  d5 {[%clk 0:02:40]} 7. Bb2 {[%clk 0:02:53]}  c5 {[%clk 0:02:40]} 8. d3 {[%clk 0:02:54]}  Nd6 {[%clk 0:02:40]} 9. Nbd2 {[%clk 0:02:54]}  Nc6 {[%clk 0:02:40]} 10. e4 {[%clk 0:02:51]}  dxe4 {[%clk 0:02:41]} 11. dxe4 {[%clk 0:02:51]}  Bg4 {[%clk 0:02:41]} 12. h3 {[%clk 0:02:50]}  Bxf3 {[%clk 0:02:40]} 13. Qxf3 {[%clk 0:02:48]}  Ne5 {[%clk 0:02:39]} 14. Qe2 {[%clk 0:02:48]}  c4 {[%clk 0:02:33]} 15. Nxc4 {[%clk 0:02:48]}  Ndxc4 {[%clk 0:02:32]} 16. bxc4 {[%clk 0:02:49]}  Rc8 {[%clk 0:02:32]} 17. Rab1 {[%clk 0:02:44]}  Nxc4 {[%clk 0:02:31]} 18. Ba1 {[%clk 0:02:44]}  b6 {[%clk 0:02:31]} 19. Rfd1 {[%clk 0:02:38]}  Qc7 {[%clk 0:02:31]} 20. h4 {[%clk 0:02:36]}  Rfd8 {[%clk 0:02:31]} 21. Bh3 {[%clk 0:02:32]}  e6 {[%clk 0:02:28]} 22. h5 {[%clk 0:02:30]}  Be5 {[%clk 0:02:14]} 23. hxg6 {[%clk 0:02:29]}  hxg6 {[%clk 0:02:15]} 24. Bf1 {[%clk 0:02:20]}  Rxd1 {[%clk 0:02:09]} 25. Rxd1 {[%clk 0:02:18]}  b5 {[%clk 0:02:07]} 26. a4 {[%clk 0:02:09]}  bxa4 {[%clk 0:01:58]} 27. Qa2 {[%clk 0:02:03]}  Nb6 {[%clk 0:01:50]} 28. c4 {[%clk 0:01:53]}  Bxa1 {[%clk 0:01:44]} 29. Qxa1 {[%clk 0:01:54]}  Qc5 {[%clk 0:01:38]} 30. Qf6 {[%clk 0:01:52]}  a3 {[%clk 0:01:34]} 31. Qc3 {[%clk 0:01:40]}  Nxc4 {[%clk 0:00:58]} 32. Bxc4 {[%clk 0:01:31]}  a2 {[%clk 0:00:57]} 33. Ra1 {[%clk 0:01:20]}  Qxc4 {[%clk 0:00:56]} 34. Qxc4 {[%clk 0:01:18]}  Rxc4 {[%clk 0:00:57]} 35. Rxa2 {[%clk 0:01:19]}  Rc7 {[%clk 0:00:58]} 36. Kf1 {[%clk 0:01:18]}  Kf8 {[%clk 0:00:57]} 37. Ke2 {[%clk 0:01:18]}  Ke8 {[%clk 0:00:57]} 38. Kd3 {[%clk 0:01:19]}  Kd8 {[%clk 0:00:57]} 39. Kd4 {[%clk 0:01:20]}  Kc8 {[%clk 0:00:57]} 40. Ke5 {[%clk 0:01:20]}  Kb7 {[%clk 0:00:54]} 41. Kf6 {[%clk 0:01:19]}  a6 {[%clk 0:00:53]} 42. Rb2+ {[%clk 0:01:14]}  Ka7 {[%clk 0:00:53]} 43. Ra2 {[%clk 0:01:14]}  Kb6 {[%clk 0:00:49]} 44. Rb2+ {[%clk 0:01:13]}  Ka5 {[%clk 0:00:46]} 45. Ra2+ {[%clk 0:01:13]}  Kb5 {[%clk 0:00:44]} 46. Rb2+ {[%clk 0:01:12]}  Kc5 {[%clk 0:00:43]} 47. Rc2+ {[%clk 0:01:00]}  Kd6 {[%clk 0:00:25]} 48. e5+ {[%clk 0:01:00]}  Kd7 {[%clk 0:00:24]} 49. Ra2 {[%clk 0:00:55]}  Ra7 {[%clk 0:00:23]} 50. Kxf7 {[%clk 0:00:55]}  a5 {[%clk 0:00:17]} 51. Kxg6 {[%clk 0:00:54]}  a4 {[%clk 0:00:18]} 52. Kf6 {[%clk 0:00:52]}  a3 {[%clk 0:00:18]} 53. f4 {[%clk 0:00:53]}  Ra4 {[%clk 0:00:18]} 54. Kg5 {[%clk 0:00:49]}  Kc6 {[%clk 0:00:19]} 55. g4 {[%clk 0:00:47]}  Kd5 {[%clk 0:00:19]} 56. Ra1 {[%clk 0:00:40]}  a2 {[%clk 0:00:18]} 57. f5 {[%clk 0:00:31]}  Kxe5 {[%clk 0:00:10]} 58. Re1+ {[%clk 0:00:30]}  Kd6 {[%clk 0:00:03]} 59. Ra1 {[%clk 0:00:23]}  e5 {[%clk 0:00:03]} 60. Kg6 {[%clk 0:00:22]}  Rxg4+ {[%clk 0:00:02]} 61. Kf7 {[%clk 0:00:21]}  Ra4 {[%clk 0:00:01]} 62. f6 {[%clk 0:00:21]}  e4 {[%clk 0:00:01]} 63. Kg7 {[%clk 0:00:21]}  e3 {[%clk 0:00:02]} 64. f7 {[%clk 0:00:21]}  Rg4+ {[%clk 0:00:00]} 65. Kh6 {[%clk 0:00:20]} 1-0


[Site "https://www.chess.com"]

[Event "Titled Tuesday Blitz June 13 Early 2023"]
[White "Brunner, Nicolas"]
[Black "Martinez Ramirez, Lennis"]
[WhiteFideId "620246"]
[BlackFideId "3509079"]
[WhiteElo "2319"]
[BlackElo "2410"]
[Result "0-1"]
[Round "10"]
[TimeControl "180+2"]
[Date "2023.06.13"]
[WhiteClock "0:00:20"]
[BlackClock "0:01:14"]
[Board "63"]

1. Nf3 {[%clk 0:03:00]}  Nf6 {[%clk 0:02:55]} 2. g3 {[%clk 0:03:00]}  e6 {[%clk 0:02:55]} 3. Bg2 {[%clk 0:03:00]}  b6 {[%clk 0:02:55]} 4. O-O {[%clk 0:02:59]}  Bb7 {[%clk 0:02:56]} 5. c4 {[%clk 0:02:59]}  Be7 {[%clk 0:02:55]} 6. b3 {[%clk 0:02:59]}  O-O {[%clk 0:02:55]} 7. Bb2 {[%clk 0:02:59]}  c5 {[%clk 0:02:55]} 8. d3 {[%clk 0:02:55]}  Nc6 {[%clk 0:02:55]} 9. e3 {[%clk 0:02:53]}  Rc8 {[%clk 0:02:56]} 10. Qe2 {[%clk 0:02:53]}  d5 {[%clk 0:02:56]} 11. Rd1 {[%clk 0:02:44]}  d4 {[%clk 0:02:54]} 12. Ne5 {[%clk 0:02:36]}  Qd6 {[%clk 0:02:44]} 13. f4 {[%clk 0:02:27]}  dxe3 {[%clk 0:02:43]} 14. Qxe3 {[%clk 0:02:23]}  Rfd8 {[%clk 0:02:35]} 15. Nc3 {[%clk 0:02:10]}  Qb8 {[%clk 0:02:31]} 16. Nxc6 {[%clk 0:01:57]}  Bxc6 {[%clk 0:02:31]} 17. Ne4 {[%clk 0:01:56]}  Ng4 {[%clk 0:02:14]} 18. Qe2 {[%clk 0:01:52]}  f5 {[%clk 0:02:12]} 19. Nd2 {[%clk 0:01:35]}  Qd6 {[%clk 0:01:32]} 20. Nf3 {[%clk 0:01:32]}  Bf6 {[%clk 0:01:32]} 21. Bxf6 {[%clk 0:01:29]}  gxf6 {[%clk 0:01:30]} 22. h3 {[%clk 0:01:28]}  Nh6 {[%clk 0:01:27]} 23. Re1 {[%clk 0:01:11]}  Re8 {[%clk 0:01:27]} 24. Rad1 {[%clk 0:01:06]}  Rcd8 {[%clk 0:01:27]} 25. Qe3 {[%clk 0:01:02]}  Nf7 {[%clk 0:01:26]} 26. d4 {[%clk 0:01:02]}  Bxf3 {[%clk 0:01:26]} 27. dxc5 {[%clk 0:00:26]}  Qxd1 {[%clk 0:01:25]} 28. Rxd1 {[%clk 0:00:25]}  Rxd1+ {[%clk 0:01:21]} 29. Kh2 {[%clk 0:00:22]}  Bxg2 {[%clk 0:01:21]} 30. Kxg2 {[%clk 0:00:22]}  bxc5 {[%clk 0:01:19]} 31. Qxc5 {[%clk 0:00:22]}  Red8 {[%clk 0:01:17]} 32. h4 {[%clk 0:00:20]}  R8d2+ {[%clk 0:01:15]} 33. Kh3 {[%clk 0:00:20]}  Rh1# {[%clk 0:01:14]} 0-1


[Site "https://www.chess.com"]

[Event "Titled Tuesday Blitz June 13 Early 2023"]
[White "Manukian, Artak"]
[Black "benny_aizenberg"]
[WhiteFideId "13301373"]
[WhiteElo "2130"]
[BlackElo "2690"]
[Result "1/2-1/2"]
[Round "10"]
[TimeControl "180+2"]
[Date "2023.06.13"]
[WhiteClock "0:01:35"]
[BlackClock "0:01:26"]
[Board "65"]

1. e4 {[%clk 0:03:00]}  g5 {[%clk 0:03:00]} 2. d4 {[%clk 0:03:00]}  g4 {[%clk 0:03:01]} 3. c4 {[%clk 0:02:54]}  h5 {[%clk 0:02:58]} 4. Nc3 {[%clk 0:02:53]}  d6 {[%clk 0:02:56]} 5. Bd3 {[%clk 0:02:48]}  Bg7 {[%clk 0:02:55]} 6. Nge2 {[%clk 0:02:47]}  Nc6 {[%clk 0:02:53]} 7. Be3 {[%clk 0:02:45]}  e5 {[%clk 0:02:52]} 8. d5 {[%clk 0:02:45]}  Nce7 {[%clk 0:02:51]} 9. Ng3 {[%clk 0:02:36]}  h4 {[%clk 0:02:32]} 10. Nf5 {[%clk 0:02:31]}  Bxf5 {[%clk 0:02:08]} 11. exf5 {[%clk 0:02:31]}  Nf6 {[%clk 0:02:09]} 12. Ne4 {[%clk 0:02:21]}  Nxf5 {[%clk 0:02:04]} 13. Bg5 {[%clk 0:02:14]}  h3 {[%clk 0:01:57]} 14. g3 {[%clk 0:02:10]}  Nd4 {[%clk 0:01:57]} 15. Bxf6 {[%clk 0:02:05]}  Bxf6 {[%clk 0:01:56]} 16. Qxg4 {[%clk 0:02:05]}  Be7 {[%clk 0:01:56]} 17. O-O-O {[%clk 0:01:58]}  Qd7 {[%clk 0:01:51]} 18. Qxd7+ {[%clk 0:01:51]}  Kxd7 {[%clk 0:01:52]} 19. Nc3 {[%clk 0:01:52]}  f5 {[%clk 0:01:50]} 20. Nb5 {[%clk 0:01:48]}  Raf8 {[%clk 0:01:43]} 21. Nxd4 {[%clk 0:01:42]}  exd4 {[%clk 0:01:44]} 22. f4 {[%clk 0:01:42]}  c5 {[%clk 0:01:26]} 23. Rde1 {[%clk 0:01:35]} 1/2-1/2


[Site "https://www.chess.com"]

[Event "Titled Tuesday Blitz June 13 Early 2023"]
[White "Kucuksari, Kaan"]
[Black "feuervogel1000000"]
[WhiteFideId "6380166"]
[WhiteElo "2364"]
[BlackElo "2522"]
[Result "0-1"]
[Round "10"]
[TimeControl "180+2"]
[Date "2023.06.13"]
[WhiteClock "0:00:17"]
[BlackClock "0:01:29"]
[Board "66"]

1. e4 {[%clk 0:02:58]}  e5 {[%clk 0:02:59]} 2. Nf3 {[%clk 0:02:59]}  Nc6 {[%clk 0:02:59]} 3. Nc3 {[%clk 0:02:59]}  Nf6 {[%clk 0:02:58]} 4. Bb5 {[%clk 0:02:59]}  Nd4 {[%clk 0:02:58]} 5. Ba4 {[%clk 0:02:52]}  Bc5 {[%clk 0:02:57]} 6. O-O {[%clk 0:02:52]}  O-O {[%clk 0:02:56]} 7. d3 {[%clk 0:02:51]}  d6 {[%clk 0:02:56]} 8. h3 {[%clk 0:02:51]}  c6 {[%clk 0:02:53]} 9. Nxd4 {[%clk 0:02:50]}  Bxd4 {[%clk 0:02:48]} 10. Ne2 {[%clk 0:02:51]}  Bb6 {[%clk 0:02:49]} 11. c3 {[%clk 0:02:49]}  d5 {[%clk 0:02:49]} 12. exd5 {[%clk 0:02:48]}  cxd5 {[%clk 0:02:48]} 13. d4 {[%clk 0:02:49]}  e4 {[%clk 0:02:47]} 14. Ng3 {[%clk 0:02:47]}  Bc7 {[%clk 0:02:45]} 15. Bb3 {[%clk 0:02:39]}  Be6 {[%clk 0:02:45]} 16. Be3 {[%clk 0:02:35]}  Qd6 {[%clk 0:02:42]} 17. Qd2 {[%clk 0:02:20]}  Nh5 {[%clk 0:02:40]} 18. Bd1 {[%clk 0:02:07]}  Nxg3 {[%clk 0:02:36]} 19. fxg3 {[%clk 0:02:08]}  Qxg3 {[%clk 0:02:36]} 20. Bf4 {[%clk 0:02:09]}  Bxf4 {[%clk 0:02:33]} 21. Qxf4 {[%clk 0:02:10]}  Qxf4 {[%clk 0:02:32]} 22. Rxf4 {[%clk 0:02:11]}  f5 {[%clk 0:02:32]} 23. h4 {[%clk 0:02:07]}  g6 {[%clk 0:02:31]} 24. Be2 {[%clk 0:01:30]}  h6 {[%clk 0:02:27]} 25. g3 {[%clk 0:01:27]}  g5 {[%clk 0:02:26]} 26. Rf2 {[%clk 0:01:25]}  f4 {[%clk 0:02:25]} 27. Kh2 {[%clk 0:01:16]}  f3 {[%clk 0:02:21]} 28. Bd1 {[%clk 0:01:16]}  g4 {[%clk 0:02:20]} 29. Bb3 {[%clk 0:01:11]}  e3 {[%clk 0:02:19]} 30. Rff1 {[%clk 0:01:11]}  f2 {[%clk 0:02:17]} 31. Bd1 {[%clk 0:01:05]}  Bf5 {[%clk 0:02:13]} 32. Be2 {[%clk 0:01:05]}  Be4 {[%clk 0:02:10]} 33. Bxg4 {[%clk 0:00:39]}  Bd3 {[%clk 0:02:08]} 34. Kg2 {[%clk 0:00:29]}  Rae8 {[%clk 0:01:33]} 35. Bf3 {[%clk 0:00:21]}  Bxf1+ {[%clk 0:01:28]} 36. Rxf1 {[%clk 0:00:21]}  Rxf3 {[%clk 0:01:29]} 37. Kxf3 {[%clk 0:00:17]}  e2 {[%clk 0:01:29]} 0-1


[Site "https://www.chess.com"]

[Event "Titled Tuesday Blitz June 13 Early 2023"]
[White "Kubicka, Anna"]
[Black "Sadykov, Ramil"]
[WhiteFideId "1152254"]
[BlackFideId "24113590"]
[WhiteElo "2144"]
[BlackElo "2245"]
[Result "0-1"]
[Round "10"]
[TimeControl "180+2"]
[Date "2023.06.13"]
[WhiteClock "0:00:00"]
[BlackClock "0:00:40"]
[Board "68"]

1. e4 {[%clk 0:03:00]}  c5 {[%clk 0:02:59]} 2. Ne2 {[%clk 0:03:00]}  Nf6 {[%clk 0:02:54]} 3. Nec3 {[%clk 0:02:58]}  Nc6 {[%clk 0:02:52]} 4. g3 {[%clk 0:02:58]}  d5 {[%clk 0:02:52]} 5. exd5 {[%clk 0:02:56]}  Nxd5 {[%clk 0:02:49]} 6. Bg2 {[%clk 0:02:56]}  Nc7 {[%clk 0:02:45]} 7. O-O {[%clk 0:02:55]}  e5 {[%clk 0:02:45]} 8. d3 {[%clk 0:02:54]}  Bd6 {[%clk 0:02:35]} 9. Be3 {[%clk 0:02:51]}  O-O {[%clk 0:02:35]} 10. Ne4 {[%clk 0:02:51]}  Ne6 {[%clk 0:02:31]} 11. Nxd6 {[%clk 0:02:50]}  Qxd6 {[%clk 0:02:32]} 12. Nc3 {[%clk 0:02:50]}  b6 {[%clk 0:02:27]} 13. Ne4 {[%clk 0:02:37]}  Qc7 {[%clk 0:02:27]} 14. Qh5 {[%clk 0:02:34]}  Bb7 {[%clk 0:02:20]} 15. Nf6+ {[%clk 0:02:10]}  gxf6 {[%clk 0:02:15]} 16. Be4 {[%clk 0:02:10]}  Rfe8 {[%clk 0:01:54]} 17. Qxh7+ {[%clk 0:01:31]}  Kf8 {[%clk 0:01:53]} 18. Bh6+ {[%clk 0:00:52]}  Ke7 {[%clk 0:01:49]} 19. Bg6 {[%clk 0:00:50]}  Ncd8 {[%clk 0:01:39]} 20. f4 {[%clk 0:00:39]}  Qc6 {[%clk 0:01:21]} 21. Be4 {[%clk 0:00:38]}  Qd7 {[%clk 0:01:21]} 22. fxe5 {[%clk 0:00:35]}  Qd4+ {[%clk 0:01:17]} 23. Kh1 {[%clk 0:00:31]}  Bxe4+ {[%clk 0:01:17]} 24. dxe4 {[%clk 0:00:31]}  Qxe5 {[%clk 0:01:15]} 25. Rad1 {[%clk 0:00:25]}  Nc6 {[%clk 0:00:57]} 26. Rd5 {[%clk 0:00:21]}  Rh8 {[%clk 0:00:58]} 27. Rd7+ {[%clk 0:00:05]}  Kxd7 {[%clk 0:00:55]} 28. Qxf7+ {[%clk 0:00:06]}  Ne7 {[%clk 0:00:53]} 29. Rd1+ {[%clk 0:00:04]}  Nd4 {[%clk 0:00:53]} 30. Bf4 {[%clk 0:00:02]}  Qxe4+ {[%clk 0:00:41]} 31. Kg1 {[%clk 0:00:00]}  Rxh2 {[%clk 0:00:40]} 0-1


[Site "https://www.chess.com"]

[Event "Titled Tuesday Blitz June 13 Early 2023"]
[White "Palczert, Matyas"]
[Black "Veiga, Jose Francisco R P Neves"]
[WhiteFideId "784958"]
[BlackFideId "1930087"]
[WhiteElo "2224"]
[BlackElo "2319"]
[Result "1-0"]
[Round "10"]
[TimeControl "180+2"]
[Date "2023.06.13"]
[WhiteClock "0:00:18"]
[BlackClock "0:00:05"]
[Board "70"]

1. e4 {[%clk 0:03:00]}  Nc6 {[%clk 0:02:49]} 2. Nf3 {[%clk 0:03:00]}  d6 {[%clk 0:02:49]} 3. d4 {[%clk 0:02:59]}  Nf6 {[%clk 0:02:49]} 4. Nc3 {[%clk 0:02:58]}  g6 {[%clk 0:02:49]} 5. Be2 {[%clk 0:02:57]}  Bg7 {[%clk 0:02:49]} 6. O-O {[%clk 0:02:57]}  O-O {[%clk 0:02:49]} 7. d5 {[%clk 0:02:55]}  Nb8 {[%clk 0:02:49]} 8. a4 {[%clk 0:02:54]}  c6 {[%clk 0:02:48]} 9. a5 {[%clk 0:02:52]}  e6 {[%clk 0:02:43]} 10. dxe6 {[%clk 0:02:41]}  Bxe6 {[%clk 0:02:44]} 11. Bf4 {[%clk 0:02:40]}  d5 {[%clk 0:02:43]} 12. Bg5 {[%clk 0:02:26]}  dxe4 {[%clk 0:02:27]} 13. Qxd8 {[%clk 0:02:20]}  Rxd8 {[%clk 0:02:28]} 14. Nxe4 {[%clk 0:02:17]}  Nbd7 {[%clk 0:02:27]} 15. Nd6 {[%clk 0:02:05]}  Nc5 {[%clk 0:02:21]} 16. Rfd1 {[%clk 0:01:55]}  h6 {[%clk 0:02:08]} 17. Be3 {[%clk 0:01:52]}  Nfe4 {[%clk 0:01:57]} 18. Nxe4 {[%clk 0:01:47]}  Nxe4 {[%clk 0:01:58]} 19. c3 {[%clk 0:01:39]}  c5 {[%clk 0:01:44]} 20. Bd3 {[%clk 0:01:29]}  Bb3 {[%clk 0:01:39]} 21. Bxe4 {[%clk 0:01:22]}  Rxd1+ {[%clk 0:01:38]} 22. Rxd1 {[%clk 0:01:22]}  Bxd1 {[%clk 0:01:39]} 23. Bxb7 {[%clk 0:01:22]}  Rb8 {[%clk 0:01:38]} 24. a6 {[%clk 0:01:22]}  Bxf3 {[%clk 0:01:31]} 25. gxf3 {[%clk 0:01:18]}  Bf8 {[%clk 0:01:32]} 26. b4 {[%clk 0:01:11]}  cxb4 {[%clk 0:01:26]} 27. Bxa7 {[%clk 0:01:04]}  Bd6 {[%clk 0:00:22]} 28. cxb4 {[%clk 0:00:52]}  Re8 {[%clk 0:00:12]} 29. Be3 {[%clk 0:00:47]}  Bb8 {[%clk 0:00:12]} 30. b5 {[%clk 0:00:38]}  Rxe3 {[%clk 0:00:09]} 31. fxe3 {[%clk 0:00:39]}  Ba7 {[%clk 0:00:10]} 32. Kf2 {[%clk 0:00:39]}  Kf8 {[%clk 0:00:10]} 33. Ke2 {[%clk 0:00:39]}  Ke7 {[%clk 0:00:10]} 34. f4 {[%clk 0:00:35]}  f5 {[%clk 0:00:09]} 35. h4 {[%clk 0:00:29]}  Kf6 {[%clk 0:00:08]} 36. Kd3 {[%clk 0:00:28]}  g5 {[%clk 0:00:08]} 37. hxg5+ {[%clk 0:00:28]}  hxg5 {[%clk 0:00:09]} 38. fxg5+ {[%clk 0:00:28]}  Kxg5 {[%clk 0:00:10]} 39. Kc4 {[%clk 0:00:23]}  Bxe3 {[%clk 0:00:09]} 40. Kd5 {[%clk 0:00:23]}  f4 {[%clk 0:00:10]} 41. Kc6 {[%clk 0:00:21]}  f3 {[%clk 0:00:10]} 42. Kc7 {[%clk 0:00:21]}  f2 {[%clk 0:00:05]} 43. Bg2 {[%clk 0:00:20]}  Kg4 {[%clk 0:00:05]} 44. b6 {[%clk 0:00:20]}  Kg3 {[%clk 0:00:06]} 45. Bf1 {[%clk 0:00:19]}  Kh2 {[%clk 0:00:05]} 46. a7 {[%clk 0:00:19]}  Kg1 {[%clk 0:00:05]} 47. Be2 {[%clk 0:00:19]}  Bxb6+ {[%clk 0:00:03]} 48. Kxb6 {[%clk 0:00:19]}  f1=Q {[%clk 0:00:04]} 49. Bxf1 {[%clk 0:00:18]}  Kxf1 {[%clk 0:00:05]} 1-0


[Site "https://www.chess.com"]

[Event "Titled Tuesday Blitz June 13 Early 2023"]
[White "Ezat, Mohamed"]
[Black "De La Villa Garcia, Jesus Maria"]
[WhiteFideId "10600906"]
[BlackFideId "2200040"]
[WhiteElo "2372"]
[BlackElo "2477"]
[Result "1-0"]
[Round "10"]
[TimeControl "180+2"]
[Date "2023.06.13"]
[WhiteClock "0:01:09"]
[BlackClock "0:00:09"]
[Board "71"]

1. d4 {[%clk 0:02:57]}  Nf6 {[%clk 0:02:59]} 2. c4 {[%clk 0:02:53]}  e6 {[%clk 0:02:59]} 3. Nc3 {[%clk 0:02:54]}  Bb4 {[%clk 0:03:00]} 4. f3 {[%clk 0:02:52]}  d6 {[%clk 0:02:56]} 5. e4 {[%clk 0:02:47]}  O-O {[%clk 0:02:55]} 6. Bd3 {[%clk 0:02:46]}  c5 {[%clk 0:02:55]} 7. a3 {[%clk 0:02:42]}  Ba5 {[%clk 0:02:52]} 8. d5 {[%clk 0:02:40]}  Re8 {[%clk 0:02:51]} 9. Ne2 {[%clk 0:02:39]}  b5 {[%clk 0:02:49]} 10. O-O {[%clk 0:02:37]}  bxc4 {[%clk 0:02:43]} 11. Bxc4 {[%clk 0:02:37]}  h6 {[%clk 0:02:33]} 12. Kh1 {[%clk 0:02:34]}  exd5 {[%clk 0:02:25]} 13. Nxd5 {[%clk 0:02:31]}  Nc6 {[%clk 0:02:24]} 14. Qa4 {[%clk 0:02:26]}  Bd7 {[%clk 0:01:59]} 15. Nxf6+ {[%clk 0:02:09]}  gxf6 {[%clk 0:01:49]} 16. Qb3 {[%clk 0:02:08]}  Ne5 {[%clk 0:01:42]} 17. Bxh6 {[%clk 0:01:59]}  Rb8 {[%clk 0:01:25]} 18. Qc2 {[%clk 0:01:58]}  Qb6 {[%clk 0:01:19]} 19. Rab1 {[%clk 0:01:51]}  Nxc4 {[%clk 0:00:51]} 20. Qxc4 {[%clk 0:01:50]}  Be6 {[%clk 0:00:42]} 21. Qc1 {[%clk 0:01:35]}  Qb3 {[%clk 0:00:35]} 22. Ng3 {[%clk 0:01:26]}  Kh7 {[%clk 0:00:19]} 23. Qf4 {[%clk 0:01:19]}  Rg8 {[%clk 0:00:16]} 24. Qh4 {[%clk 0:01:19]}  Rg6 {[%clk 0:00:14]} 25. Bg5+ {[%clk 0:01:16]}  Kg7 {[%clk 0:00:11]} 26. Bxf6+ {[%clk 0:01:14]}  Kf8 {[%clk 0:00:11]} 27. Be7+ {[%clk 0:01:10]}  Ke8 {[%clk 0:00:11]} 28. Bxd6 {[%clk 0:01:10]}  Rd8 {[%clk 0:00:09]} 29. Qe7# {[%clk 0:01:09]} 1-0


[Site "https://www.chess.com"]

[Event "Titled Tuesday Blitz June 13 Early 2023"]
[White "robertoalejandro10"]
[Black "The_Sherman_Variation"]
[WhiteElo "2601"]
[BlackElo "2464"]
[Result "1-0"]
[Round "10"]
[TimeControl "180+2"]
[Date "2023.06.13"]
[WhiteClock "0:00:50"]
[BlackClock "0:00:52"]
[Board "73"]

1. Nf3 {[%clk 0:03:00]}  Nf6 {[%clk 0:02:59]} 2. c4 {[%clk 0:03:01]}  g6 {[%clk 0:02:58]} 3. g3 {[%clk 0:03:01]}  Bg7 {[%clk 0:02:59]} 4. Bg2 {[%clk 0:03:01]}  d6 {[%clk 0:02:59]} 5. O-O {[%clk 0:03:01]}  O-O {[%clk 0:02:59]} 6. Nc3 {[%clk 0:03:02]}  Nbd7 {[%clk 0:03:00]} 7. b3 {[%clk 0:03:02]}  e5 {[%clk 0:02:59]} 8. Bb2 {[%clk 0:03:03]}  c6 {[%clk 0:02:58]} 9. Rc1 {[%clk 0:03:01]}  Ne8 {[%clk 0:02:57]} 10. d4 {[%clk 0:03:00]}  Qe7 {[%clk 0:02:55]} 11. dxe5 {[%clk 0:03:00]}  dxe5 {[%clk 0:02:56]} 12. Ne4 {[%clk 0:02:59]}  f5 {[%clk 0:02:53]} 13. Nc3 {[%clk 0:02:59]}  e4 {[%clk 0:02:49]} 14. Ne1 {[%clk 0:02:58]}  Ne5 {[%clk 0:02:46]} 15. Qc2 {[%clk 0:02:56]}  Be6 {[%clk 0:02:46]} 16. Kh1 {[%clk 0:02:47]}  g5 {[%clk 0:02:44]} 17. e3 {[%clk 0:02:45]}  g4 {[%clk 0:02:43]} 18. Ne2 {[%clk 0:02:43]}  Nf3 {[%clk 0:02:35]} 19. Bxf3 {[%clk 0:02:41]}  gxf3 {[%clk 0:02:31]} 20. Nf4 {[%clk 0:02:41]}  Bf7 {[%clk 0:02:30]} 21. h3 {[%clk 0:02:35]}  Qg5 {[%clk 0:02:26]} 22. Bxg7 {[%clk 0:02:34]}  Nxg7 {[%clk 0:02:24]} 23. Kh2 {[%clk 0:02:31]}  Rad8 {[%clk 0:02:22]} 24. Qc3 {[%clk 0:02:26]}  Rd6 {[%clk 0:02:20]} 25. Rh1 {[%clk 0:02:22]}  Nh5 {[%clk 0:02:12]} 26. Nxh5 {[%clk 0:02:11]}  Qxh5 {[%clk 0:02:12]} 27. Nc2 {[%clk 0:02:09]}  Rfd8 {[%clk 0:02:04]} 28. h4 {[%clk 0:02:01]}  Qg4 {[%clk 0:01:58]} 29. Nd4 {[%clk 0:01:57]}  c5 {[%clk 0:01:53]} 30. Nb5 {[%clk 0:01:57]}  Rh6 {[%clk 0:01:49]} 31. Kg1 {[%clk 0:01:53]}  a6 {[%clk 0:01:47]} 32. Nc7 {[%clk 0:01:52]}  Rhd6 {[%clk 0:01:43]} 33. Kh2 {[%clk 0:01:44]}  R8d7 {[%clk 0:01:35]} 34. Nd5 {[%clk 0:01:42]}  Bxd5 {[%clk 0:01:34]} 35. cxd5 {[%clk 0:01:43]}  Rxd5 {[%clk 0:01:35]} 36. Rc2 {[%clk 0:01:40]}  R7d6 {[%clk 0:01:32]} 37. Qc4 {[%clk 0:01:30]}  b5 {[%clk 0:01:32]} 38. Qf1 {[%clk 0:01:30]}  Rd2 {[%clk 0:01:29]} 39. Qc1 {[%clk 0:01:24]}  Rh6 {[%clk 0:01:21]} 40. Kg1 {[%clk 0:01:12]}  Rxc2 {[%clk 0:01:16]} 41. Qxc2 {[%clk 0:01:13]}  Rc6 {[%clk 0:01:16]} 42. Kh2 {[%clk 0:01:11]}  Qg6 {[%clk 0:01:09]} 43. Rd1 {[%clk 0:01:10]}  Qf6 {[%clk 0:01:07]} 44. Rd5 {[%clk 0:01:07]}  c4 {[%clk 0:01:06]} 45. bxc4 {[%clk 0:00:54]}  Rxc4 {[%clk 0:01:07]} 46. Qd2 {[%clk 0:00:52]}  Rc6 {[%clk 0:01:01]} 47. Rd8+ {[%clk 0:00:51]}  Kg7 {[%clk 0:00:56]} 48. Qd7+ {[%clk 0:00:51]}  Qf7 {[%clk 0:00:52]} 49. Qxc6 {[%clk 0:00:50]} 1-0


[Site "https://www.chess.com"]